bitfinex/quotes_ETHUSD_20240917
["timestamp","ask_amount","ask_price","bid_price","bid_amount"]
[1726601564359,0.78265607,2361.4,2361.3,13.6365461]
[1726601564664,0.44321473,2361.4,2361.3,13.6365461]
[1726601564860,0.78265607,2361.4,2361.3,13.6365461]
[1726601565023,1.32598209,2361.4,2361.3,13.6365461]
[1726601565748,0.78265607,2361.4,2361.3,13.6365461]
[1726601567143,0.78265607,2361.4,2361.3,14.1865461]
[1726601567353,0.78265607,2361.4,2361.3,16.6744461]
[1726601568368,0.44321473,2361.4,2361.3,16.6744461]
[1726601568936,0.78288851,2361.4,2361.3,16.6744461]
[1726601569135,0.44321473,2361.4,2361.3,16.6744461]
[1726601569337,0.78287545,2361.4,2361.3,16.6744461]
[1726601570279,0.78287545,2361.4,2361.3,16.1244461]
[1726601570443,0.44321473,2361.4,2361.3,16.1244461]
[1726601570770,0.78287545,2361.4,2361.3,16.1244461]
[1726601571473,1.32270386,2361.4,2361.3,16.1244461]
[1726601571680,0.78287545,2361.4,2361.3,16.1244461]
[1726601572148,1.32255953,2361.4,2361.3,16.1244461]
[1726601572355,0.78287545,2361.4,2361.3,16.1244461]
[1726601573049,1.32255382,2361.4,2361.3,16.1244461]
[1726601573254,1.32255382,2361.4,2361.3,8.4699]
[1726601574053,2.65138422,2361.4,2361.3,8.4699]
[1726601574267,1.32255382,2361.4,2361.3,8.4699]
[1726601575089,1.77204513,2361.4,2361.3,8.4699]
[1726601575295,1.3270323,2361.4,2361.3,8.4699]
[1726601575592,2.6558627,2361.4,2361.3,9.740403]
[1726601576488,1.3270323,2361.4,2361.3,9.740403]
[1726601576698,2.65585565,2361.4,2361.3,9.740403]
[1726601577524,1.32702525,2361.4,2361.3,13.975353]
[1726601577787,1.32702525,2361.4,2361.3,9.740403]
[1726601578163,1.32702525,2361.4,2361.3,13.975353]
[1726601578375,1.32702525,2361.4,2361.3,19.411953]
[1726601578720,0.78314185,2361.4,2361.3,19.411953]
[1726601579218,1.66732559,2361.4,2361.3,19.411953]
[1726601579369,1.32739847,2361.4,2361.3,19.411953]
[1726601579570,2.21158427,2361.4,2361.3,19.411953]
[1726601580411,2.21158427,2361.4,2361.3,8.4699]
[1726601580816,3.54528145,2361.4,2361.3,4.23495]
[1726601580999,3.98335814,2361.4,2361.3,4.23495]
[1726601581325,4.43182249,2361.4,2360.9,4.23561]
[1726601581473,1.75798365,2361.2,2361.1,4.23516]
[1726601581672,3.08671171,2361.2,2361.1,4.23516]
[1726601582113,1.30854267,2361.2,2361.1,4.23516]
[1726601582289,1.30854267,2361.2,2361.1,8.47047]
[1726601582608,3.08671171,2361.2,2361.1,8.47047]
[1726601582972,2.64201597,2361.2,2361.1,8.47047]
[1726601583174,2.2176591,2361.2,2361.1,8.47047]
[1726601583516,2.64201597,2361.2,2361.1,8.47047]
[1726601584603,2.21163289,2361.2,2361.1,8.47047]
[1726601584815,2.21212304,2361.2,2361.1,4.23516]
[1726601584991,5.08782863,2361.2,2361.1,4.23516]
[1726601585313,5.51232242,2361.2,2361.1,8.47047]
[1726601585527,5.08782863,2361.2,2361.1,4.23516]
[1726601585693,5.08782863,2361.2,2360.6,5.5100991]
[1726601585694,6.43964293,2361.2,2360.8,4.23576]
[1726601585891,1.77855355,2360.9,2360.7,4.236]
[1726601586113,9.59659563,2360.8,2360.6,0.0388991]
[1726601586422,1.09047987,2360.7,2360.6,0.0388991]
[1726601586627,4.48400902,2360.7,2360.6,0.0388991]
[1726601586917,6.7058861,2360.7,2360.6,0.0388991]
[1726601587123,4.48400902,2360.7,2360.6,0.0388991]
[1726601587429,11.38841493,2360.7,2360.6,0.0388991]
[1726601587579,11.86558915,2360.7,2360.6,0.0388991]
[1726601587775,8.19674065,2360.7,2360.6,0.0388991]
[1726601588024,12.43277065,2360.7,2360.6,0.0388991]
[1726601588320,16.01669997,2360.7,2360.6,0.0388991]
[1726601588536,16.56757171,2360.7,2360.6,0.0388991]
[1726601588738,17.13526175,2360.7,2360.6,0.0388991]
[1726601589127,19.79461109,2360.7,2360.6,0.0388991]
[1726601589442,17.13535974,2360.7,2360.6,0.0388991]
[1726601589649,17.57756994,2360.7,2360.6,0.0388991]
[1726601590135,24.7699467,2360.7,2360.6,0.0388991]
[1726601590949,22.11270436,2360.7,2360.6,0.0388991]
[1726601591635,26.34873436,2360.7,2360.6,0.0388991]
[1726601591841,25.2096634,2360.7,2360.6,0.0388991]
[1726601592133,20.08857025,2360.7,2360.6,0.0388991]
[1726601593108,10.43334578,2360.7,2360.6,0.0388991]
[1726601593329,10.85806776,2360.7,2360.6,0.0388991]
[1726601593541,15.09409776,2360.7,2360.6,0.0388991]
[1726601593838,10.41570964,2360.7,2360.6,0.0388991]
[1726601594343,9.99098766,2360.7,2360.6,0.0388991]
[1726601594733,24.30747238,2360.7,2360.6,0.0388991]
[1726601594909,2.4873,2360.0,2359.9,0.0388991]
[1726601595113,12.62443527,2360.0,2359.9,0.0388991]
[1726601595339,3.40981065,2360.0,2359.9,0.0388991]
[1726601596268,2.84211179,2360.0,2359.9,0.0388991]
[1726601596424,0.35481179,2360.0,2359.9,0.0388991]
[1726601596629,0.35481179,2360.0,2359.9,4.2763591]
[1726601596630,0.7099542,2360.0,2359.9,4.2763591]
[1726601596971,0.7099542,2360.0,2359.9,9.36520901]
[1726601596972,0.35514241,2360.0,2359.9,9.36520901]
[1726601598269,0.35514241,2360.0,2359.9,8.5138191]
[1726601601569,0.35514241,2360.0,2359.9,15.0505791]
[1726601601773,0.79818336,2360.0,2359.9,15.6005791]
[1726601604833,0.79818336,2360.0,2359.9,19.8380391]
[1726601605039,0.35514241,2360.0,2359.9,31.46042663]
[1726601606340,7.42,2360.6,2360.5,10.86288]
[1726601606635,9.8473,2361.2,2360.8,4.23574]
[1726601606855,0.92301266,2361.1,2360.8,4.23574]
[1726601607073,0.35500487,2361.0,2360.8,4.23574]
[1726601607806,0.35500487,2361.0,2360.6,4.23605]
[1726601608011,0.9230276,2361.0,2360.7,4.23601]
[1726601608169,0.9230276,2361.0,2360.7,8.47202]
[1726601608512,0.35500487,2360.9,2360.8,8.47155]
[1726601608668,2.4273,2361.2,2360.9,4.23567]
[1726601608868,0.35498153,2361.1,2361.0,4.23547]
[1726601609207,5.56212693,2361.5,2361.1,4.23524]
[1726601609208,2.2986,2361.4,2361.1,4.23524]
[1726601609369,4.49726728,2361.4,2361.2,4.23497]
[1726601609722,0.56795641,2361.3,2361.2,4.23497]
[1726601610022,0.92291477,2361.3,2361.2,4.23497]
[1726601610182,0.92291477,2361.3,2361.2,8.4701]
[1726601610379,0.56795641,2361.3,2361.2,8.4701]
[1726601610572,0.92290695,2361.3,2361.1,4.23528]
[1726601610775,0.35495054,2361.2,2361.1,4.23528]
[1726601611001,0.56795641,2361.3,2361.1,4.23528]
[1726601611420,0.56795641,2361.3,2361.1,4.23523]
[1726601612108,0.35495048,2361.2,2361.1,4.23523]
[1726601612407,0.35495048,2361.2,2361.0,4.23539]
[1726601612609,0.35495048,2361.2,2361.0,4.23538]
[1726601612823,0.56795641,2361.3,2361.1,4.23531]
[1726601613116,0.35494999,2361.2,2361.1,4.23531]
[1726601615354,0.56795641,2361.3,2361.2,8.47026]
[1726601615509,0.56795641,2361.3,2361.2,8.55495158]
[1726601615849,0.56795641,2361.3,2361.2,13.25539]
[1726601616008,0.56795641,2361.3,2361.2,15.52449]
[1726601616948,7.42,2361.9,2361.8,4.23405]
[1726601617148,7.42,2361.9,2361.6,2.3996]
[1726601617149,3.13586007,2361.9,2361.6,4.23431]
[1726601617321,2.4793,2361.7,2361.6,4.23438]
[1726601617516,0.34792096,2361.7,2361.6,4.23438]
[1726601617721,2.4793,2361.9,2361.8,4.23405]
[1726601617934,0.9046348,2361.9,2361.7,8.46832]
[1726601618136,0.34793646,2361.8,2361.7,4.23409]
[1726601618943,0.34793646,2361.8,2361.6,4.23439]
[1726601619129,0.34793646,2361.7,2361.6,8.46875]
[1726601619331,0.382696,2361.9,2361.7,4.23422]
[1726601619847,0.34794022,2361.8,2361.7,4.23422]
[1726601620311,0.69588004,2361.8,2361.7,4.23422]
[1726601622769,0.34794022,2361.8,2361.7,4.23422]
[1726601623081,0.34794022,2361.8,2361.6,8.46866]
[1726601623250,0.69587927,2361.8,2361.6,8.46866]
[1726601623449,0.90463401,2361.8,2361.6,8.46865]
[1726601623803,0.34793905,2361.7,2361.6,4.23432]
[1726601624347,0.34793905,2361.7,2361.6,4.23441]
[1726601624566,3.16750434,2361.7,2361.4,4.23467]
[1726601624789,4.03653692,2361.7,2361.3,4.23491]
[1726601624999,0.34797227,2361.6,2361.4,4.23461]
[1726601625284,0.34796561,2361.5,2361.4,4.23461]
[1726601625970,0.34796561,2361.5,2361.1,4.23514]
[1726601626174,0.34796561,2361.4,2361.2,4.23502]
[1726601626572,0.34796561,2361.4,2361.3,4.23495]
[1726601627159,0.34796561,2361.4,2361.2,4.23502]
[1726601627650,0.34796561,2361.4,2361.2,8.47006]
[1726601628082,0.34796561,2361.4,2361.1,4.23521]
[1726601628394,0.34796561,2361.4,2361.3,4.23495]
[1726601628691,0.34798061,2361.6,2361.4,4.23474]
[1726601628851,0.90474653,2361.6,2361.4,4.23474]
[1726601629211,2.81956529,2361.7,2361.5,4.23459]
[1726601629411,2.81956529,2361.7,2361.4,4.23474]
[1726601629547,3.69593811,2361.7,2361.4,8.4694]
[1726601629947,0.34796896,2361.6,2361.4,4.23466]
[1726601630176,0.90472951,2361.6,2361.4,8.46935]
[1726601630314,0.34796896,2361.5,2361.4,4.23466]
[1726601630651,0.44296529,2361.7,2361.6,4.23441]
[1726601630813,0.79092287,2361.7,2361.5,4.23459]
[1726601631012,0.34795758,2361.6,2361.5,4.23459]
[1726601631234,0.90471464,2361.6,2361.5,4.23459]
[1726601631432,0.34795758,2361.6,2361.5,4.23459]
[1726601632238,0.44296529,2361.7,2361.5,4.23459]
[1726601632551,0.3479568,2361.6,2361.5,4.23459]
[1726601632723,0.3479568,2361.6,2361.5,8.46918]
[1726601632924,0.44296529,2361.7,2361.6,8.46882]
[1726601633109,0.44296529,2361.7,2361.6,10.88492]
[1726601633653,0.7909043,2361.7,2361.6,6.65051]
[1726601633821,0.7909043,2361.7,2361.6,4.23441]
[1726601634028,0.7909043,2361.7,2361.5,4.23459]
[1726601634230,0.34794912,2361.6,2361.5,4.23459]
[1726601634742,2.85796529,2361.7,2361.5,4.23459]
[1726601635112,2.85796529,2361.7,2361.6,4.23441]
[1726601635347,3.20591212,2361.7,2361.6,4.23441]
[1726601635853,0.79091212,2361.7,2361.6,4.23441]
[1726601636350,0.44296529,2361.7,2361.6,4.23441]
[1726601636863,0.79091089,2361.7,2361.6,4.23441]
[1726601638121,0.79091089,2361.7,2361.5,4.23459]
[1726601638333,0.3479456,2361.6,2361.5,4.23459]
[1726601639911,0.3479456,2361.6,2361.4,4.23474]
[1726601640116,1.27386969,2361.6,2361.3,4.23491]
[1726601640355,0.92592409,2361.6,2361.3,4.23487]
[1726601640537,2.4638,2361.5,2361.1,8.47038]
[1726601640740,2.4638,2361.5,2361.1,8.4704]
[1726601641058,5.00243126,2361.5,2361.2,4.23503]
[1726601641282,0.4429319,2361.4,2361.2,4.23503]
[1726601641577,0.79090142,2361.4,2361.2,4.23503]
[1726601641780,0.79090142,2361.4,2361.0,2.4666]
[1726601641942,0.79090142,2361.4,2360.4,0.655791]
[1726601641943,6.59082,2361.2,2360.8,4.23577]
[1726601642143,6.59082,2361.2,2360.9,4.23561]
[1726601642144,0.34796952,2361.1,2360.9,4.23561]
[1726601642341,2.3556,2361.2,2360.7,4.2359]
[1726601642342,6.59077,2361.2,2360.7,4.2359]
[1726601642544,0.34803744,2361.0,2360.8,4.2357]
[1726601642770,0.90490551,2361.0,2360.8,4.2357]
[1726601642975,0.34803744,2360.9,2360.8,4.2357]
[1726601643596,0.34803744,2360.9,2360.7,4.2359]
[1726601643597,0.9049155,2360.9,2360.7,4.2359]
[1726601644090,0.9049155,2360.9,2360.8,4.23585]
[1726601644387,0.55687806,2360.9,2360.8,4.23585]
[1726601644694,0.55687806,2360.9,2360.8,12.34909273]
[1726601644695,0.90492952,2360.9,2360.8,12.34909273]
[1726601644948,0.34805146,2360.9,2360.8,11.4172]
[1726601645082,0.34805146,2360.9,2360.8,4.23585]
[1726601645281,0.90490922,2360.9,2360.8,4.23585]
[1726601646198,1.25296196,2360.9,2360.8,4.23585]
[1726601646402,0.3480425,2360.9,2360.8,8.4717]
[1726601646689,1.32749693,2361.1,2361.0,4.23549]
[1726601646993,2.44465466,2361.1,2361.0,4.23549]
[1726601648157,2.44838293,2361.1,2361.0,4.23549]
[1726601649367,2.44837663,2361.1,2361.0,4.23549]
[1726601649671,2.88714734,2361.1,2361.0,4.23549]
[1726601649871,3.39757863,2361.1,2360.8,4.23583]
[1726601650118,3.39757863,2361.1,2360.7,4.23587]
[1726601650119,4.53191903,2361.0,2360.7,4.23587]
[1726601650414,2.23651903,2360.9,2360.8,4.23585]
[1726601650610,2.44880661,2360.9,2360.8,4.23585]
[1726601650786,1.11715143,2360.9,2360.7,8.47182]
[1726601650985,2.44917956,2360.8,2360.7,8.47182]
[1726601651190,2.44917956,2360.8,2360.7,4.23587]
[1726601652610,2.44929633,2360.8,2360.7,4.23587]
[1726601655011,1.1172682,2360.8,2360.7,4.23587]
[1726601655218,1.1172682,2360.8,2360.7,9.319107]
[1726601655372,1.1172682,2360.8,2360.7,8.4719]
[1726601658416,1.1172682,2360.8,2360.7,15.10723]
[1726601658714,0.90495679,2360.8,2360.7,15.10723]
[1726601659702,1.77499446,2361.0,2360.9,8.47134]
[1726601660030,0.44296633,2361.0,2360.9,8.47134]
[1726601660233,1.77499446,2361.0,2360.9,8.47134]
[1726601660384,1.56011132,2361.0,2360.9,8.47134]
[1726601660703,1.56011002,2361.0,2360.9,8.47134]
[1726601660894,2.25614769,2361.0,2360.9,8.47134]
[1726601661520,2.25614769,2361.0,2360.9,16.474461]
[1726601662019,2.46843549,2361.0,2360.9,16.474461]
[1726601663229,2.46843549,2361.0,2360.9,14.96381]
[1726601664139,2.46843549,2361.0,2360.9,19.74948]
[1726601664633,2.12042271,2361.0,2360.9,26.98515]
[1726601664796,1.67745638,2361.0,2360.9,26.98515]
[1726601665430,1.33202813,2362.0,2361.9,8.46774]
[1726601666010,1.33202813,2362.0,2361.9,12.70161]
[1726601666247,1.76999591,2362.2,2362.1,8.46704]
[1726601666558,1.33110685,2362.2,2362.1,8.46704]
[1726601666848,1.33110685,2362.3,2362.2,4.23334]
[1726601667051,1.76999591,2362.3,2362.1,4.23342]
[1726601667232,1.3310775,2362.2,2362.1,8.46685]
[1726601667466,1.76999591,2362.3,2362.1,8.46685]
[1726601667467,1.3310775,2362.3,2362.1,8.46685]
[1726601667649,1.3310775,2362.3,2362.2,4.23334]
[1726601667950,1.76999591,2362.3,2362.2,4.23334]
[1726601668121,2.41714411,2362.3,2362.0,4.23368]
[1726601668320,1.33074822,2362.1,2362.0,4.23368]
[1726601668723,1.33074822,2362.2,2362.0,4.23368]
[1726601668931,1.33074822,2362.2,2362.1,4.23352]
[1726601669636,1.33074822,2362.3,2362.2,4.23334]
[1726601670037,4.25239591,2362.4,2362.1,4.23343]
[1726601670237,1.33012648,2362.2,2362.1,4.23343]
[1726601670414,1.33012648,2362.3,2362.1,4.2334]
[1726601670810,1.33012648,2362.2,2362.0,4.23367]
[1726601671034,1.33012648,2362.2,2362.1,4.23352]
[1726601671442,1.33012648,2362.2,2362.0,4.23367]
[1726601671632,1.33012648,2362.2,2362.1,4.23352]
[1726601671826,1.33012648,2362.2,2362.0,4.23369]
[1726601672047,1.33012648,2362.1,2362.0,4.2336]
[1726601672357,1.33012648,2362.2,2362.0,4.2336]
[1726601672659,1.33012648,2362.2,2362.1,4.23352]
[1726601673223,2.487,2362.1,2361.6,4.23427]
[1726601673419,5.36708921,2361.7,2361.2,4.23504]
[1726601673631,2.487,2361.5,2361.1,4.23525]
[1726601673916,1.3295235,2361.4,2361.2,4.2351]
[1726601674222,3.8165235,2361.5,2361.2,4.2351]
[1726601674615,1.3295235,2361.4,2361.2,4.2351]
[1726601676443,4.25699591,2361.5,2361.2,4.2351]
[1726601676444,3.8165235,2361.5,2361.2,4.2351]
[1726601676646,3.8165235,2361.5,2361.0,4.23547]
[1726601676647,1.3295235,2361.4,2361.1,4.2353]
[1726601677262,3.8165235,2361.5,2361.2,4.23499]
[1726601677565,0.30101126,2361.4,2361.3,4.23495]
[1726601677723,0.30101126,2361.4,2361.3,8.4699]
[1726601677918,0.30101126,2361.4,2361.3,11.67955923]
[1726601678772,0.30101126,2361.4,2361.3,16.46450923]
[1726601678944,1.3295235,2361.8,2361.7,4.23423]
[1726601679147,1.6304945,2361.8,2361.7,4.23423]
[1726601680026,1.3295235,2361.8,2361.7,4.23423]
[1726601680531,1.63048955,2361.8,2361.7,4.23423]
[1726601680742,1.93146047,2361.8,2361.7,4.23423]
[1726601680927,1.93146047,2361.8,2361.6,4.23424]
[1726601681140,0.30097092,2361.7,2361.6,4.23424]
[1726601681729,0.30097092,2361.7,2361.6,8.46865]
[1726601681933,0.30097092,2361.7,2361.6,9.315515]
[1726601682237,1.63048955,2361.8,2361.7,4.23423]
[1726601682519,1.93145292,2361.8,2361.7,4.23423]
[1726601682941,1.93145292,2361.8,2361.6,4.23424]
[1726601683147,0.30096337,2361.7,2361.6,4.23424]
[1726601684469,1.63048955,2361.8,2361.7,4.23423]
[1726601684671,1.93145429,2361.8,2361.7,4.23423]
[1726601685377,0.60193079,2361.8,2361.7,4.23423]
[1726601685574,1.93145429,2361.8,2361.7,4.23423]
[1726601685764,1.93145429,2361.8,2361.6,4.23424]
[1726601685949,0.30096474,2361.7,2361.6,4.23424]
[1726601686365,0.74379688,2361.7,2361.6,4.23424]
[1726601687682,0.74379688,2361.7,2361.6,8.46865]
[1726601688485,0.74379688,2361.7,2361.6,4.23424]
[1726601688993,0.74379688,2361.7,2361.6,9.315531]
[1726601689299,0.74379688,2361.7,2361.6,11.48585]
[1726601689510,0.74379688,2361.7,2361.6,15.72026]
[1726601689797,1.76999591,2362.1,2362.0,4.2337]
[1726601689962,1.3293659,2362.1,2362.0,4.2337]
[1726601690369,2.07314032,2362.1,2362.0,4.2337]
[1726601690577,0.44285797,2362.1,2362.0,8.89077]
[1726601691259,0.74376411,2362.1,2362.0,4.65707]
[1726601691957,1.04467666,2362.1,2362.0,4.65707]
[1726601692354,1.04467666,2362.1,2362.0,4.2337]
[1726601694086,0.74377052,2362.1,2362.0,4.2337]
[1726601694604,1.04468529,2362.1,2362.0,4.2337]
[1726601696987,0.74377274,2362.1,2362.0,4.2337]
[1726601697608,1.04467884,2362.1,2362.0,4.2337]
[1726601697913,0.74376407,2362.1,2362.0,4.2337]
[1726601698199,0.74376407,2362.1,2361.9,4.23387]
[1726601698387,0.3009061,2362.0,2361.9,4.23387]
[1726601698903,0.3009061,2362.0,2361.9,8.46774]
[1726601699193,0.3009061,2362.0,2361.9,9.314514]
[1726601699598,0.3009061,2362.0,2361.9,8.46774]
[1726601701179,0.31786161,2362.0,2361.9,8.46774]
[1726601701500,0.44285797,2362.1,2362.0,4.2337]
[1726601701707,0.44285797,2362.1,2361.9,8.46767]
[1726601701913,0.31786745,2362.0,2361.9,8.46767]
[1726601702270,1.77222387,2362.1,2361.9,8.46767]
[1726601702497,0.3178782,2362.0,2361.9,8.46767]
[1726601703481,1.3293659,2362.0,2361.9,8.46767]
[1726601703813,0.31788409,2362.0,2361.9,8.46767]
[1726601704316,1.64724999,2362.0,2361.9,8.46767]
[1726601704669,1.64724999,2362.0,2361.7,4.2342]
[1726601704874,1.3293659,2362.0,2361.9,4.23387]
[1726601705072,1.64725189,2362.0,2361.9,4.23387]
[1726601705276,2.33990576,2362.0,2361.7,4.23415]
[1726601705518,1.75377262,2361.9,2361.6,4.2344]
[1726601705725,1.33170556,2361.7,2361.4,4.23468]
[1726601705877,1.33172783,2361.5,2361.3,4.23487]
[1726601706213,1.33172783,2361.4,2361.2,4.23502]
[1726601706430,1.64969942,2361.3,2361.2,8.47006]
[1726601706579,2.07422281,2361.3,2361.2,8.47006]
[1726601706778,1.64969942,2361.3,2361.2,4.23502]
[1726601706975,1.64969942,2361.3,2361.2,4.23513]
[1726601707206,2.07422281,2361.3,2361.2,4.23513]
[1726601707411,2.443,2361.2,2360.6,6.57738]
[1726601707708,2.443,2361.2,2361.0,8.4708]
[1726601707709,3.77531492,2361.2,2361.0,8.4708]
[1726601707916,0.31799283,2361.1,2361.0,4.23539]
[1726601708275,1.65030775,2361.1,2361.0,4.23539]
[1726601708706,1.65030775,2361.1,2360.9,4.23566]
[1726601708927,6.12555445,2361.0,2360.7,4.23588]
[1726601709225,6.12555445,2361.0,2360.4,6.57766]
[1726601709226,3.77547196,2360.8,2360.4,6.57766]
[1726601709426,2.70456795,2360.7,2360.4,4.23644]
[1726601709591,0.31799283,2360.6,2360.5,4.23633]
[1726601709992,0.74262351,2360.6,2360.5,4.23633]
[1726601710222,0.74262351,2360.6,2360.4,8.4729]
[1726601710435,1.75710264,2360.7,2360.5,4.23639]
[1726601710792,0.33513368,2360.6,2360.5,8.47278]
[1726601711150,0.33513368,2360.6,2360.5,10.81398]
[1726601711943,0.33513368,2360.6,2360.2,4.23681]
[1726601712145,4.03756571,2360.4,2360.2,4.23691]
[1726601712433,0.33513368,2360.3,2360.0,4.23711]
[1726601712729,0.33513368,2360.2,2360.1,4.2371]
[1726601712915,0.33513368,2360.2,2359.9,4.2762791]
[1726601713119,0.33513368,2360.1,2359.9,0.0388991]
[1726601713436,1.2809552,2360.1,2359.9,0.0388991]
[1726601713599,0.33521697,2360.0,2359.9,0.0388991]
[1726601713793,0.33521697,2360.0,2359.9,4.2763591]
[1726601714032,0.33521697,2360.0,2359.9,8.5138191]
[1726601714242,0.42477913,2360.4,2360.0,4.23719]
[1726601714534,0.33518052,2360.3,2360.0,8.47439]
[1726601714697,0.33518052,2360.2,2360.0,8.47438]
[1726601714898,0.33518052,2360.1,2360.0,4.23719]
[1726601715830,0.33518052,2360.1,2359.9,0.0388991]
[1726601716035,0.33518052,2360.0,2359.9,4.2763591]
[1726601716219,0.33518052,2360.0,2359.9,0.0388991]
[1726601716826,1.44118114,2360.0,2359.9,0.0388991]
[1726601717111,0.33518052,2360.0,2359.9,0.0388991]
[1726601717446,0.33518052,2360.0,2359.9,8.5138191]
[1726601717647,0.33518052,2360.3,2360.0,4.23721]
[1726601717948,0.33520417,2360.3,2360.1,4.23708]
[1726601718250,0.33520417,2360.2,2360.1,4.23708]
[1726601718425,0.33520417,2360.2,2360.0,8.47447]
[1726601718619,0.33520417,2360.1,2360.0,8.47447]
[1726601718946,0.33520417,2360.1,2360.0,9.33428136]
[1726601719151,2.4475,2360.4,2360.1,4.23693]
[1726601719367,0.33518695,2360.3,2360.1,4.23693]
[1726601719518,2.4475,2360.4,2360.1,4.23693]
[1726601719719,0.33518136,2360.3,2360.1,4.23693]
[1726601720021,2.4475,2360.4,2360.1,4.23693]
[1726601720217,0.33517529,2360.3,2360.1,4.23693]
[1726601720524,2.3607,2360.6,2360.2,6.69597]
[1726601720721,7.42,2360.8,2360.2,2.4592]
[1726601720922,3.21018611,2360.9,2360.6,4.23612]
[1726601721153,9.06568892,2360.9,2360.4,8.47282]
[1726601721327,0.53624539,2360.7,2360.4,4.23653]
[1726601721658,2.80356835,2360.9,2360.5,4.23628]
[1726601721959,0.53624159,2360.8,2360.5,4.23628]
[1726601722125,0.87139107,2360.7,2360.5,4.23628]
[1726601722459,0.33514948,2360.6,2360.4,4.23648]
[1726601722621,8.27343571,2360.8,2360.3,4.23665]
[1726601722826,2.4906,2360.6,2360.3,4.23666]
[1726601723028,0.33514504,2360.5,2360.3,4.23666]
[1726601723448,2.4906,2360.6,2360.2,4.23679]
[1726601723652,0.33517665,2360.5,2360.2,4.23679]
[1726601723963,6.52816571,2360.6,2360.3,4.23671]
[1726601724323,6.52816571,2360.6,2360.2,4.23679]
[1726601724758,0.33516409,2360.5,2360.2,4.23679]
[1726601725081,2.4906,2360.6,2360.2,4.23679]
[1726601725569,0.33516289,2360.5,2360.2,4.23679]
[1726601725753,2.4906,2360.6,2360.2,4.23679]
[1726601725922,0.3351681,2360.5,2360.3,4.23672]
[1726601726122,2.4906,2360.6,2360.3,4.23672]
[1726601726571,2.3665,2360.3,2359.9,4.2763491]
[1726601726726,2.3665,2360.3,2360.0,4.23718]
[1726601727067,2.3665,2360.3,2359.9,4.2763391]
[1726601727357,2.3665,2360.3,2359.9,4.2762791]
[1726601727602,2.3665,2360.3,2360.0,4.2372]
[1726601728622,2.3665,2360.3,2360.0,5.08854791]
[1726601730120,2.3665,2360.3,2360.0,4.2372]
[1726601730533,2.3665,2360.3,2360.1,4.23709]
[1726601730761,2.2658,2360.6,2360.3,4.23665]
[1726601731123,2.2658,2360.6,2360.4,4.23656]
[1726601731425,2.3159,2360.8,2360.2,0.08473032]
[1726601731658,0.44286835,2360.9,2360.2,0.08473032]
[1726601731659,0.44286835,2360.9,2360.6,4.23612]
[1726601732030,0.44286835,2360.9,2360.7,4.23593]
[1726601732836,2.74064265,2361.0,2360.6,4.23612]
[1726601733039,0.33512651,2360.9,2360.6,8.47223]
[1726601733275,2.74064265,2361.0,2360.6,4.23611]
[1726601733483,0.3351257,2360.9,2360.6,4.23611]
[1726601733771,2.74064265,2361.0,2360.6,4.23611]
[1726601734660,0.33511417,2360.9,2360.6,4.23611]
[1726601734855,2.74064265,2361.0,2360.6,4.23611]
[1726601735058,0.33512702,2360.9,2360.6,4.23611]
[1726601735311,2.74064265,2361.0,2360.6,4.23611]
[1726601735632,0.33513011,2360.9,2360.6,4.23611]
[1726601735789,2.74064265,2361.0,2360.7,4.23602]
[1726601735985,0.33513197,2360.9,2360.7,4.23602]
[1726601736185,2.74064265,2361.0,2360.7,4.23602]
[1726601736532,0.33512689,2360.9,2360.6,4.23611]
[1726601736826,12.15762889,2361.0,2360.5,4.23636]
[1726601736979,0.33513366,2360.9,2360.5,4.23636]
[1726601737180,0.33513366,2360.8,2360.5,4.23636]
[1726601737421,11.73288624,2361.0,2360.5,4.23636]
[1726601737685,1.93196622,2360.9,2360.5,4.23636]
[1726601737886,2.46818453,2360.9,2360.5,4.23636]
[1726601738086,0.3351376,2360.8,2360.5,4.23636]
[1726601738281,10.58905571,2361.0,2360.6,4.23619]
[1726601738482,0.33513313,2360.9,2360.7,4.23602]
[1726601738725,2.3159,2361.2,2360.8,4.23585]
[1726601738931,0.33510218,2361.1,2360.9,4.23559]
[1726601739137,2.3159,2361.5,2361.2,4.23513]
[1726601739417,0.33506611,2361.4,2361.2,4.23513]
[1726601739617,2.3159,2361.5,2361.2,8.47018]
[1726601739791,0.33504001,2361.4,2361.2,4.23503]
[1726601740006,2.3159,2361.5,2361.2,4.23503]
[1726601740208,0.33504223,2361.4,2361.2,4.23503]
[1726601740534,2.3159,2361.5,2361.2,4.23503]
[1726601740842,0.33503965,2361.4,2361.2,4.23503]
[1726601741130,2.3159,2361.5,2361.2,4.23503]
[1726601741336,0.33504111,2361.3,2361.2,4.23503]
[1726601741503,2.3159,2361.5,2361.1,4.2353]
[1726601741504,0.33504111,2361.4,2361.1,4.23523]
[1726601741697,2.3159,2361.5,2361.1,4.23523]
[1726601741898,0.33504037,2361.3,2361.2,4.3396837]
[1726601742831,0.44291007,2361.3,2361.2,4.3396837]
[1726601743012,0.77795044,2361.3,2361.2,0.1045737]
[1726601743220,0.77795044,2361.3,2361.2,4.3397037]
[1726601743740,0.77795044,2361.3,2361.2,0.1045737]
[1726601743912,0.44291007,2361.3,2361.2,0.1045737]
[1726601744119,0.77795044,2361.3,2361.2,0.1045737]
[1726601744308,0.44291007,2361.3,2361.2,0.1045737]
[1726601744515,1.3140325,2361.3,2361.2,0.1045737]
[1726601744718,0.44291007,2361.3,2361.2,0.1045737]
[1726601744936,0.77795902,2361.3,2361.2,4.3397037]
[1726601745350,1.31401933,2361.3,2361.2,4.3397037]
[1726601745506,0.97897038,2361.3,2361.2,4.3397037]
[1726601745698,1.31401933,2361.3,2361.2,4.3397037]
[1726601746015,0.77795902,2361.3,2361.2,4.3397037]
[1726601746226,1.31402299,2361.3,2361.2,4.3397037]
[1726601746434,1.31401676,2361.3,2361.2,4.3397037]
[1726601746633,0.77795902,2361.3,2361.2,4.3397037]
[1726601746945,1.3140251,2361.3,2361.2,8.5748337]
[1726601747153,1.3140251,2361.3,2361.2,11.69188692]
[1726601747154,0.77795902,2361.3,2361.2,11.69188692]
[1726601747444,8.75247196,2361.9,2361.6,4.23441]
[1726601747445,7.8445551,2361.9,2361.6,4.23441]
[1726601747680,1.08322094,2361.8,2361.6,4.23441]
[1726601747950,1.08322094,2361.8,2361.7,0.10385145]
[1726601748320,0.33499266,2361.8,2361.5,4.23456]
[1726601748724,1.08322794,2361.8,2361.6,0.10393468]